[Event "SWVG Arnold Classic Prestige All 2019"]
[Site "Sandton"]
[Date "2019.05.19"]
[Round "10.10"]
[White "Tapera, Uzeni"]
[Black "Mthunzi, Brighton"]
[Result "0-1"]
[ECO "B92"]
[WhiteElo "1748"]
[BlackElo "2006"]
[Annotator "NA RC"]
[PlyCount "84"]
[EventDate "2019.05.18"]
[EventType "swiss"]
[EventCountry "RSA"]
[SourceTitle "playchess.com"]
[Source "ChessBase"]
[SourceQuality "1"]
[TimeControl "1500+10"]

1. e4 {[%emt 0:01:18]} c5 {[%emt 0:00:00]} 2. Nf3 {[%emt 0:00:01]} d6 {[%emt 0:00:00]} 3. d4 {[%emt 0:00:02]} cxd4 {[%emt 0:00:00]} 4. Nxd4 {[%emt 0:00:02]} Nf6 {[%emt 0:00:00]} 5. Nc3 {[%emt 0:24:27]} a6 6. Be2 {[%emt 0:00:00]} e5 {[%emt 0:00:00]} 7. Nb3 {[%emt 0:00:00]} Be7 {[%emt 0:00:00]} 8. Be3 {[%emt 0:00:00]} b5 {[%emt 0:00:07]} 9. a3 {[%emt 0:00:00]} Be6 {[%emt 0:00:09]} 10. O-O {[%emt 0:00:00]} Nbd7 {[%emt 0:00:05]} 11. f4 {[%emt 0:00:00]} exf4 {[%emt 0:00:03]} 12. Bxf4 {[%emt 0:00:00]} Ne5 {[%emt 0:00:01]} 13. Nd4 {[%emt 0:00:00]} Rc8 {[%emt 0:00:10]} 14. Nxe6 {[%emt 0:00:00]} fxe6 {[%emt 0:00:01]} 15. Kh1 {[%emt 0:00:00]} O-O {[%emt 0:00:03]} 16. Bxe5 {[%emt 0:00:00]} dxe5 {[%emt 0:00:00]} 17. Qe1 {[%emt 0:00:00]} Qb6 {[%emt 0:00:06]} 18. Qg3 {[%emt 0:00:00]} Qc7 {[%emt 0:00:54]} 19. Rad1 {[%emt 0:00:00]} Rcd8 {[%emt 0:00:09]} 20. Qh3 {[%emt 0:00:00]} Qc6 {[%emt 0:00:09]} 21. Bd3 {[%emt 0:00:00]} Bc5 {[%emt 0:02:51]} 22. Ne2 {[%emt 0:00:00]} Rde8 {[%emt 0:00:46]} 23. Ng3 {[%emt 0:00:00]} Bd4 {[%emt 0:04:06]} 24. c3 {[%emt 0:00:00]} Bb6 {[%emt 0:00:04]} 25. Bc2 {[%emt 0:00:00]} a5 {[%emt 0:00:45]} 26. Bb1 {[%emt 0:00:00]} Bc5 {[%emt 0:00:25]} 27. Qh4 {[%emt 0:00:00]} b4 {[%emt 0:00:20]} 28. cxb4 {[%emt 0:00:00]} axb4 {[%emt 0:00:01]} 29. axb4 {[%emt 0:00:00]} Bxb4 {[%emt 0:00:04]} 30. Qg5 {[%emt 0:00:00]} Bc5 {[%emt 0:01:11]} 31. Qxe5 {[%emt 0:00:00]} Ng4 {[%emt 0:00:02]} 32. Qc3 {[%emt 0:00:00]} Qb6 {[%emt 0:02:24]} 33. Nh5 {[%emt 0:00:00]} e5 {[%emt 0:00:07]} 34. Ba2+ {[%emt 0:00:00]} Kh8 {[%emt 0:00:01]} 35. Qg3 {[%emt 0:00:00]} Qg6 {[%emt 0:00:19]} 36. h3 {[%emt 0:00:00]} Nf2+ {[%emt 0:00:34]} 37. Rxf2 {[%emt 0:00:00]} Bxf2 {[%emt 0:00:06]} 38. Qg4 {[%emt 0:00:00]} Qxg4 {[%emt 0:00:13]} 39. hxg4 {[%emt 0:00:00]} g6 {[%emt 0:00:00]} 40. g3 {[%emt 0:00:00]} gxh5 {[%emt 0:00:02]} 41. Kg2 {[%emt 0:00:00]} hxg4 {[%emt 0:00:09]} 42. Bd5 {[%emt 0:00:00]} Bd4 {[%emt 0:00:03]} 0-1

[Event "SWVG Arnold Classic Prestige All 2019"]
[Site "Sandton"]
[Date "2019.05.19"]
[Round "10.12"]
[White "Kushar, Michael"]
[Black "Klevansky, Aron"]
[Result "0-1"]
[ECO "B23"]
[WhiteElo "1884"]
[BlackElo "1878"]
[Annotator "NA RC"]
[PlyCount "100"]
[EventDate "2019.05.18"]
[EventType "swiss"]
[EventCountry "RSA"]
[SourceTitle "playchess.com"]
[Source "ChessBase"]
[SourceQuality "1"]
[TimeControl "1500+10"]

1. e4 {[%emt 0:00:00]} d6 {[%emt 0:00:13]} 2. Bc4 {[%emt 0:00:02]} Nf6 {[%emt 0:00:26]} 3. Nc3 {[%emt 0:00:02]} c5 {[%emt 0:24:51]} 4. d3 {[%emt 0:25:36]} g6 {[%emt 0:00:10]} 5. Nge2 {[%emt 0:00:10]} Bg7 {[%emt 0:00:10]} 6. O-O {[%emt 0:00:10]} Nc6 {[%emt 0:00:10]} 7. a3 {[%emt 0:00:10]} O-O {[%emt 0:00:10]} 8. f4 {[%emt 0:00:10]} a6 {[%emt 0:00:10]} 9. Ba2 {[%emt 0:00:10]} b5 {[%emt 0:00:10]} 10. h3 {[%emt 0:00:10]} b4 {[%emt 0:00:10]} 11. axb4 {[%emt 0:00:10]} cxb4 {[%emt 0:00:10]} 12. Nd5 {[%emt 0:00:10]} Nxd5 {[%emt 0:00:10]} 13. Bxd5 {[%emt 0:00:10]} Qb6+ {[%emt 0:00:10]} 14. Kh1 {[%emt 0:00:10]} Bb7 {[%emt 0:00:10]} 15. Qe1 {[%emt 0:00:10]} Rac8 {[%emt 0:00:10]} 16. c3 {[%emt 0:00:10]} e6 {[%emt 0:00:10]} 17. Bxc6 {[%emt 0:00:10]} Bxc6 {[%emt 0:00:10]} 18. cxb4 {[%emt 0:00:10]} Bb5 {[%emt 0:00:10]} 19. Qg3 {[%emt 0:00:10]} Rc2 {[%emt 0:00:10]} 20. Nc3 {[%emt 0:00:10]} Qd4 {[%emt 0:00:10]} 21. Nxb5 {[%emt 0:00:10]} axb5 {[%emt 0:00:10]} 22. f5 {[%emt 0:00:10]} exf5 {[%emt 0:00:10]} 23. exf5 {[%emt 0:00:10]} Rfc8 {[%emt 0:00:10]} 24. fxg6 {[%emt 0:00:10]} hxg6 {[%emt 0:00:10]} 25. Be3 {[%emt 0:00:10]} Qxd3 {[%emt 0:00:10]} 26. Rad1 {[%emt 0:00:10]} Qe4 {[%emt 0:00:10]} 27. Rxd6 {[%emt 0:00:10]} Be5 {[%emt 0:00:10]} 28. Rxg6+ {[%emt 0:00:10]} fxg6 {[%emt 0:00:10]} 29. Qg5 {[%emt 0:00:10]} Re2 {[%emt 0:00:10]} 30. Bc5 {[%emt 0:00:10]} Re1 {[%emt 0:00:10]} 31. Rxe1 {[%emt 0:00:10]} Qxe1+ {[%emt 0:00:10]} 32. Bg1 {[%emt 0:00:10]} Qe4 {[%emt 0:00:10]} 33. h4 {[%emt 0:00:10]} Rf8 {[%emt 0:00:10]} 34. Qe7 {[%emt 0:00:10]} Qf5 {[%emt 0:00:10]} 35. Qc5 {[%emt 0:00:10]} Qh5 {[%emt 0:00:10]} 36. Qd5+ {[%emt 0:00:10]} Kg7 {[%emt 0:00:10]} 37. g3 {[%emt 0:00:10]} Qf3+ {[%emt 0:00:10]} 38. Qxf3 {[%emt 0:00:10]} Rxf3 {[%emt 0:00:10]} 39. Bh2 {[%emt 0:00:10]} Rb3 {[%emt 0:00:10]} 40. Kg2 {[%emt 0:00:10]} Rxb2+ {[%emt 0:00:10]} 41. Kh3 {[%emt 0:00:10]} Rxb4 {[%emt 0:00:10]} 42. Bg1 {[%emt 0:00:10]} Rb3 {[%emt 0:00:10]} 43. Bf2 {[%emt 0:00:10]} b4 {[%emt 0:00:10]} 44. Kg4 {[%emt 0:00:10]} Rb1 {[%emt 0:00:10]} 45. h5 {[%emt 0:00:10]} gxh5+ {[%emt 0:00:10]} 46. Kxh5 {[%emt 0:00:10]} b3 {[%emt 0:00:10]} 47. Kg5 b2 {[%emt 0:00:10]} 48. g4 {[%emt 0:00:20]} Rf1 {[%emt 0:00:10]} 49. Bg3 {[%emt 0:00:10]} Bf6+ {[%emt 0:00:10]} 50. Kh5 {[%emt 0:00:10]} Rh1+ {[%emt 0:00:10]} 0-1